[Event "Titled Tuesday Blitz November 29 Late 2022"]
[White "Postnikov, Daniil"]
[Black "Rose, Felix"]
[WhiteFideId "4166329"]
[BlackFideId "5105722"]
[WhiteElo "2261"]
[BlackElo "2039"]
[Result "1-0"]
[Round "01"]
[TimeControl "180+1"]
[Date "2022.11.30"]
[WhiteClock "0:01:20"]
[BlackClock "0:00:15"]

1. e4 {[%clk 0:02:57]}  c5 {[%clk 0:02:59]} 2. a3 {[%clk 0:02:57]}  g6 {[%clk 0:02:57]} 3. h4 {[%clk 0:02:56]}  Nf6 {[%clk 0:02:55]} 4. e5 {[%clk 0:02:56]}  Nd5 {[%clk 0:02:48]} 5. d4 {[%clk 0:02:51]}  cxd4 {[%clk 0:02:46]} 6. Qxd4 {[%clk 0:02:52]}  e6 {[%clk 0:02:46]} 7. h5 {[%clk 0:02:44]}  Nc6 {[%clk 0:02:45]} 8. Qe4 {[%clk 0:02:44]}  Bg7 {[%clk 0:02:44]} 9. Nf3 {[%clk 0:02:44]}  Qc7 {[%clk 0:02:38]} 10. c4 {[%clk 0:02:41]}  Nde7 {[%clk 0:02:18]} 11. Bf4 {[%clk 0:02:40]}  g5 {[%clk 0:02:01]} 12. h6 {[%clk 0:02:31]}  Bxh6 {[%clk 0:01:59]} 13. Rxh6 {[%clk 0:02:30]}  gxf4 {[%clk 0:02:00]} 14. Nc3 {[%clk 0:02:29]}  Ng6 {[%clk 0:01:49]} 15. Nb5 {[%clk 0:02:26]}  Qa5+ {[%clk 0:01:46]} 16. Kd1 {[%clk 0:02:10]}  a6 {[%clk 0:01:35]} 17. Nd6+ {[%clk 0:02:10]}  Ke7 {[%clk 0:01:36]} 18. Rh5 {[%clk 0:01:51]}  Qc5 {[%clk 0:01:22]} 19. Ke1 {[%clk 0:01:25]}  Qa5+ {[%clk 0:00:44]} 20. Kd1 {[%clk 0:01:25]}  Qc5 {[%clk 0:00:43]} 21. Ke2 {[%clk 0:01:24]}  Qb6 {[%clk 0:00:29]} 22. b4 {[%clk 0:01:24]}  Qc7 {[%clk 0:00:28]} 23. c5 {[%clk 0:01:23]}  b6 {[%clk 0:00:28]} 24. Ng5 {[%clk 0:01:21]}  bxc5 {[%clk 0:00:22]} 25. Ngxf7 {[%clk 0:01:21]}  cxb4 {[%clk 0:00:14]} 26. Nxh8 {[%clk 0:01:20]}  Nxh8 {[%clk 0:00:15]} 27. Rxh7+ {[%clk 0:01:20]} 1-0


[Site "https://www.chess.com"]

[Event "Titled Tuesday Blitz November 29 Late 2022"]
[White "Putnam, Liam"]
[Black "Jimenez, Joaquin"]
[WhiteFideId "30938279"]
[BlackFideId "109860"]
[WhiteElo "2082"]
[BlackElo "2163"]
[Result "1-0"]
[Round "01"]
[TimeControl "180+1"]
[Date "2022.11.30"]
[WhiteClock "0:00:39"]
[BlackClock "0:00:52"]

1. c4 {[%clk 0:02:59]}  Nf6 {[%clk 0:02:57]} 2. Nc3 {[%clk 0:03:00]}  g6 {[%clk 0:02:55]} 3. e4 {[%clk 0:03:00]}  d6 {[%clk 0:02:50]} 4. d4 {[%clk 0:03:00]}  Bg7 {[%clk 0:02:51]} 5. f3 {[%clk 0:02:57]}  Nc6 {[%clk 0:02:44]} 6. Be3 {[%clk 0:02:55]}  a6 {[%clk 0:02:44]} 7. Qd2 {[%clk 0:02:52]}  Rb8 {[%clk 0:02:44]} 8. Rc1 {[%clk 0:02:48]}  O-O {[%clk 0:02:35]} 9. Nge2 {[%clk 0:02:48]}  Bd7 {[%clk 0:02:33]} 10. Nd1 {[%clk 0:02:45]}  b5 {[%clk 0:02:33]} 11. c5 {[%clk 0:02:45]}  dxc5 {[%clk 0:02:25]} 12. Rxc5 {[%clk 0:02:46]}  e6 {[%clk 0:02:16]} 13. Nf2 {[%clk 0:02:46]}  Re8 {[%clk 0:02:14]} 14. g3 {[%clk 0:02:45]}  Bf8 {[%clk 0:02:11]} 15. Rc1 {[%clk 0:02:39]}  e5 {[%clk 0:02:07]} 16. d5 {[%clk 0:02:28]}  Bb4 {[%clk 0:02:04]} 17. Nc3 {[%clk 0:02:28]}  Na5 {[%clk 0:02:04]} 18. b3 {[%clk 0:02:16]}  c6 {[%clk 0:02:02]} 19. Nd3 {[%clk 0:02:06]}  Ba3 {[%clk 0:01:56]} 20. Rd1 {[%clk 0:02:00]}  cxd5 {[%clk 0:01:54]} 21. Nxd5 {[%clk 0:01:55]}  Nxd5 {[%clk 0:01:50]} 22. exd5 {[%clk 0:01:56]}  e4 {[%clk 0:01:49]} 23. fxe4 {[%clk 0:01:52]}  Bg4 {[%clk 0:01:44]} 24. Rb1 {[%clk 0:01:14]}  Rxe4 {[%clk 0:01:42]} 25. Bg2 {[%clk 0:01:08]}  Qxd5 {[%clk 0:01:33]} 26. O-O {[%clk 0:00:59]}  Rbe8 {[%clk 0:01:24]} 27. Bxe4 {[%clk 0:00:40]}  Rxe4 {[%clk 0:01:05]} 28. Nf2 {[%clk 0:00:39]}  Qxd2 {[%clk 0:01:01]} 29. Bxd2 {[%clk 0:00:40]}  Bc5 {[%clk 0:01:01]} 30. Bxa5 {[%clk 0:00:39]}  Re2 {[%clk 0:00:55]} 31. Rbc1 {[%clk 0:00:38]}  Be3 {[%clk 0:00:53]} 32. Rce1 {[%clk 0:00:38]}  Bxf2+ {[%clk 0:00:52]} 33. Rxf2 {[%clk 0:00:39]} 1-0


[Site "https://www.chess.com"]

[Event "Titled Tuesday Blitz November 29 Late 2022"]
[White "Riehle, Marco"]
[Black "Seletsky, Grigory"]
[WhiteFideId "12904392"]
[BlackFideId "14112191"]
[WhiteElo "2462"]
[BlackElo "2492"]
[Result "0-1"]
[Round "01"]
[TimeControl "180+1"]
[Date "2022.11.30"]
[WhiteClock "0:00:40"]
[BlackClock "0:00:07"]

1. e4 {[%clk 0:02:59]}  e6 {[%clk 0:03:00]} 2. c4 {[%clk 0:02:58]}  d5 {[%clk 0:03:01]} 3. cxd5 {[%clk 0:02:59]}  exd5 {[%clk 0:03:01]} 4. Qb3 {[%clk 0:03:00]}  c6 {[%clk 0:02:56]} 5. e5 {[%clk 0:03:00]}  Bc5 {[%clk 0:02:50]} 6. Nf3 {[%clk 0:03:00]}  Ne7 {[%clk 0:02:49]} 7. d4 {[%clk 0:03:00]}  Bb6 {[%clk 0:02:48]} 8. Bd3 {[%clk 0:03:00]}  Bf5 {[%clk 0:02:45]} 9. O-O {[%clk 0:02:56]}  Qd7 {[%clk 0:02:38]} 10. Bg5 {[%clk 0:02:53]}  Bxd3 {[%clk 0:02:36]} 11. Qxd3 {[%clk 0:02:53]}  Na6 {[%clk 0:02:36]} 12. a3 {[%clk 0:02:48]}  Nc7 {[%clk 0:02:35]} 13. Nc3 {[%clk 0:02:44]}  O-O {[%clk 0:02:33]} 14. Na4 {[%clk 0:02:42]}  Qf5 {[%clk 0:02:24]} 15. Qd2 {[%clk 0:02:42]}  Ng6 {[%clk 0:02:21]} 16. b4 {[%clk 0:02:33]}  Ne6 {[%clk 0:02:21]} 17. Nc5 {[%clk 0:02:27]}  Bxc5 {[%clk 0:02:03]} 18. bxc5 {[%clk 0:02:26]}  b5 {[%clk 0:01:53]} 19. Be3 {[%clk 0:02:23]}  a5 {[%clk 0:01:46]} 20. h3 {[%clk 0:02:17]}  h5 {[%clk 0:01:45]} 21. Qe2 {[%clk 0:02:06]}  Ngf4 {[%clk 0:01:44]} 22. Bxf4 {[%clk 0:02:06]}  Nxf4 {[%clk 0:01:44]} 23. Qe3 {[%clk 0:02:05]}  g5 {[%clk 0:01:42]} 24. Rae1 {[%clk 0:01:50]}  Rfe8 {[%clk 0:01:23]} 25. h4 {[%clk 0:01:20]}  g4 {[%clk 0:01:19]} 26. Nd2 {[%clk 0:01:20]}  Kg7 {[%clk 0:00:54]} 27. g3 {[%clk 0:01:15]}  Ne6 {[%clk 0:00:49]} 28. f3 {[%clk 0:01:13]}  b4 {[%clk 0:00:32]} 29. a4 {[%clk 0:01:11]}  Re7 {[%clk 0:00:25]} 30. Kg2 {[%clk 0:01:09]}  Rg8 {[%clk 0:00:21]} 31. fxg4 {[%clk 0:01:06]}  Qxg4 {[%clk 0:00:20]} 32. Nf3 {[%clk 0:01:06]}  Kf8 {[%clk 0:00:16]} 33. Qf2 {[%clk 0:01:03]}  Nf4+ {[%clk 0:00:14]} 34. Kg1 {[%clk 0:00:56]}  Nh3+ {[%clk 0:00:12]} 35. Kg2 {[%clk 0:00:55]}  Nxf2 {[%clk 0:00:12]} 36. Kxf2 {[%clk 0:00:56]}  Qxg3+ {[%clk 0:00:12]} 37. Ke2 {[%clk 0:00:56]}  Rg4 {[%clk 0:00:12]} 38. Ng5 {[%clk 0:00:53]}  Rf4 {[%clk 0:00:09]} 39. Rg1 {[%clk 0:00:49]}  Qxh4 {[%clk 0:00:08]} 40. Nh7+ {[%clk 0:00:49]}  Ke8 {[%clk 0:00:08]} 41. Nf6+ {[%clk 0:00:44]}  Rxf6 {[%clk 0:00:07]} 42. Kd2 {[%clk 0:00:41]}  Rf2+ {[%clk 0:00:07]} 43. Re2 {[%clk 0:00:39]}  Rxe2+ {[%clk 0:00:06]} 44. Kxe2 {[%clk 0:00:40]}  Qe4+ {[%clk 0:00:06]} 45. Kf1 {[%clk 0:00:40]}  Qxd4 {[%clk 0:00:07]} 46. Rg8+ {[%clk 0:00:41]}  Kd7 {[%clk 0:00:06]} 47. Rg3 {[%clk 0:00:42]}  Qxe5 {[%clk 0:00:05]} 48. Kg2 {[%clk 0:00:43]}  Qe2+ {[%clk 0:00:05]} 49. Kh3 {[%clk 0:00:43]}  Re3 {[%clk 0:00:05]} 50. Rxe3 {[%clk 0:00:39]}  Qxe3+ {[%clk 0:00:06]} 51. Kh2 {[%clk 0:00:40]}  d4 {[%clk 0:00:07]} 0-1


[Site "https://www.chess.com"]

[Event "Titled Tuesday Blitz November 29 Late 2022"]
[White "Rodriguez Fontecha, Marcos"]
[Black "Howell, David W L"]
[WhiteFideId "2256576"]
[BlackFideId "410608"]
[WhiteElo "2509"]
[BlackElo "2972"]
[Result "0-1"]
[Round "01"]
[TimeControl "180+1"]
[Date "2022.11.30"]
[WhiteClock "0:00:13"]
[BlackClock "0:00:14"]

1. Nf3 {[%clk 0:02:58]}  e6 {[%clk 0:02:51]} 2. d4 {[%clk 0:02:57]}  Nf6 {[%clk 0:02:51]} 3. g3 {[%clk 0:02:57]}  b5 {[%clk 0:02:50]} 4. Bg2 {[%clk 0:02:58]}  Bb7 {[%clk 0:02:51]} 5. a4 {[%clk 0:02:58]}  b4 {[%clk 0:02:51]} 6. a5 {[%clk 0:02:58]}  c5 {[%clk 0:02:47]} 7. O-O {[%clk 0:02:57]}  Na6 {[%clk 0:02:35]} 8. Qd3 {[%clk 0:02:53]}  Qc8 {[%clk 0:02:30]} 9. c4 {[%clk 0:02:46]}  cxd4 {[%clk 0:02:20]} 10. Nxd4 {[%clk 0:02:36]}  Nc5 {[%clk 0:02:10]} 11. Qc2 {[%clk 0:02:34]}  Bxg2 {[%clk 0:02:05]} 12. Kxg2 {[%clk 0:02:35]}  Qb7+ {[%clk 0:02:05]} 13. f3 {[%clk 0:02:33]}  Be7 {[%clk 0:02:04]} 14. e4 {[%clk 0:02:28]}  O-O {[%clk 0:02:03]} 15. b3 {[%clk 0:02:26]}  Rfc8 {[%clk 0:01:53]} 16. Bb2 {[%clk 0:02:25]}  d5 {[%clk 0:01:48]} 17. exd5 {[%clk 0:02:26]}  exd5 {[%clk 0:01:47]} 18. Nf5 {[%clk 0:02:22]}  dxc4 {[%clk 0:01:35]} 19. Nxe7+ {[%clk 0:02:18]}  Qxe7 {[%clk 0:01:34]} 20. bxc4 {[%clk 0:02:17]}  Rd8 {[%clk 0:01:24]} 21. Nd2 {[%clk 0:01:33]}  Nd3 {[%clk 0:00:51]} 22. Bxf6 {[%clk 0:01:21]}  Qe2+ {[%clk 0:00:43]} 23. Kg1 {[%clk 0:01:09]}  Nf4 {[%clk 0:00:28]} 24. gxf4 {[%clk 0:00:40]}  Rxd2 {[%clk 0:00:26]} 25. Qxd2 {[%clk 0:00:38]}  Qxd2 {[%clk 0:00:26]} 26. Bh4 {[%clk 0:00:33]}  b3 {[%clk 0:00:21]} 27. Rfd1 {[%clk 0:00:30]}  Qxf4 {[%clk 0:00:19]} 28. Bf2 {[%clk 0:00:26]}  h5 {[%clk 0:00:17]} 29. c5 {[%clk 0:00:24]}  Qxf3 {[%clk 0:00:16]} 30. Rac1 {[%clk 0:00:21]}  Rc8 {[%clk 0:00:16]} 31. Rd4 {[%clk 0:00:13]}  Rc6 {[%clk 0:00:14]} 0-1


[Site "https://www.chess.com"]

[Event "Titled Tuesday Blitz November 29 Late 2022"]
[White "Sabar, Ethmane Daouda"]
[Black "Adla, Diego"]
[WhiteFideId "19600097"]
[BlackFideId "100072"]
[WhiteElo "1950"]
[BlackElo "2377"]
[Result "1/2-1/2"]
[Round "01"]
[TimeControl "180+1"]
[Date "2022.11.30"]
[WhiteClock "0:00:14"]
[BlackClock "0:01:49"]

1. d4 {[%clk 0:02:56]}  Nf6 {[%clk 0:02:59]} 2. Nf3 {[%clk 0:02:54]}  d5 {[%clk 0:02:59]} 3. Nc3 {[%clk 0:02:55]}  c6 {[%clk 0:02:58]} 4. Bf4 {[%clk 0:02:55]}  Bf5 {[%clk 0:02:58]} 5. e3 {[%clk 0:02:55]}  e6 {[%clk 0:02:58]} 6. Bd3 {[%clk 0:02:53]}  Bxd3 {[%clk 0:02:57]} 7. Qxd3 {[%clk 0:02:54]}  Bd6 {[%clk 0:02:57]} 8. Ne5 {[%clk 0:02:53]}  O-O {[%clk 0:02:56]} 9. g4 {[%clk 0:02:49]}  Qc7 {[%clk 0:02:55]} 10. g5 {[%clk 0:02:42]}  Nfd7 {[%clk 0:02:52]} 11. Nxd7 {[%clk 0:02:42]}  Nxd7 {[%clk 0:02:51]} 12. Bxd6 {[%clk 0:02:42]}  Qxd6 {[%clk 0:02:51]} 13. O-O-O {[%clk 0:02:38]}  e5 {[%clk 0:02:51]} 14. e4 {[%clk 0:02:33]}  dxe4 {[%clk 0:02:48]} 15. Nxe4 {[%clk 0:02:32]}  Qe7 {[%clk 0:02:43]} 16. Nf6+ {[%clk 0:02:30]}  Nxf6 {[%clk 0:02:42]} 17. gxf6 {[%clk 0:02:31]}  Qxf6 {[%clk 0:02:42]} 18. dxe5 {[%clk 0:02:19]}  Qxe5 {[%clk 0:02:42]} 19. Qg3 {[%clk 0:02:18]}  Qxg3 {[%clk 0:02:40]} 20. hxg3 {[%clk 0:02:19]}  Rfd8 {[%clk 0:02:40]} 21. c3 {[%clk 0:02:12]}  g6 {[%clk 0:02:39]} 22. Kc2 {[%clk 0:02:11]}  h5 {[%clk 0:02:39]} 23. f3 {[%clk 0:01:58]}  Kg7 {[%clk 0:02:39]} 24. c4 {[%clk 0:01:52]}  Kf6 {[%clk 0:02:39]} 25. g4 {[%clk 0:01:49]}  hxg4 {[%clk 0:02:37]} 26. fxg4 {[%clk 0:01:50]}  Kg5 {[%clk 0:02:37]} 27. Rdf1 {[%clk 0:01:50]}  f6 {[%clk 0:02:36]} 28. Rh7 {[%clk 0:01:46]}  Rd4 {[%clk 0:02:35]} 29. b3 {[%clk 0:01:31]}  b5 {[%clk 0:02:34]} 30. Rc7 {[%clk 0:01:25]}  bxc4 {[%clk 0:02:33]} 31. Rxc6 {[%clk 0:01:25]}  cxb3+ {[%clk 0:02:32]} 32. axb3 {[%clk 0:01:25]}  Rf8 {[%clk 0:02:31]} 33. Ra6 {[%clk 0:01:09]}  Rf7 {[%clk 0:02:29]} 34. Ra5+ {[%clk 0:00:40]}  Kh6 {[%clk 0:02:29]} 35. g5+ {[%clk 0:00:37]}  Kh7 {[%clk 0:02:19]} 36. Rxf6 {[%clk 0:00:33]}  Rdd7 {[%clk 0:02:16]} 37. Raa6 {[%clk 0:00:31]}  Rxf6 {[%clk 0:02:15]} 38. gxf6 {[%clk 0:00:31]}  g5 {[%clk 0:02:14]} 39. b4 {[%clk 0:00:28]}  Kg6 {[%clk 0:02:14]} 40. Kc3 {[%clk 0:00:25]}  g4 {[%clk 0:02:14]} 41. Kc4 {[%clk 0:00:21]}  Rf7 {[%clk 0:02:10]} 42. Kd5 {[%clk 0:00:17]}  Kf5 {[%clk 0:02:04]} 43. b5 {[%clk 0:00:14]}  g3 {[%clk 0:02:03]} 44. Ra3 {[%clk 0:00:10]}  Kg4 {[%clk 0:02:03]} 45. Ke6 {[%clk 0:00:10]}  Rb7 {[%clk 0:02:00]} 46. f7 {[%clk 0:00:10]}  Rb8 {[%clk 0:02:00]} 47. Ke7 {[%clk 0:00:10]}  g2 {[%clk 0:02:01]} 48. Ra1 {[%clk 0:00:10]}  Rb7+ {[%clk 0:01:59]} 49. Ke8 {[%clk 0:00:10]}  Rb8+ {[%clk 0:01:58]} 50. Ke7 {[%clk 0:00:10]}  Rb7+ {[%clk 0:01:51]} 51. Ke8 {[%clk 0:00:10]}  Rxb5 {[%clk 0:01:50]} 52. f8=Q {[%clk 0:00:11]}  Rb8+ {[%clk 0:01:50]} 53. Ke7 {[%clk 0:00:11]}  Rxf8 {[%clk 0:01:50]} 54. Kxf8 {[%clk 0:00:12]}  Kf3 {[%clk 0:01:50]} 55. Ke7 {[%clk 0:00:13]}  a5 {[%clk 0:01:49]} 56. Kd6 {[%clk 0:00:14]}  a4 {[%clk 0:01:49]} 57. Kc5 {[%clk 0:00:14]}  a3 {[%clk 0:01:49]} 58. Kb4 {[%clk 0:00:15]}  a2 {[%clk 0:01:50]} 59. Kb3 {[%clk 0:00:15]}  Kg3 {[%clk 0:01:49]} 60. Kxa2 {[%clk 0:00:16]}  Kh2 {[%clk 0:01:50]} 61. Kb2 {[%clk 0:00:16]}  g1=Q {[%clk 0:01:49]} 62. Rxg1 {[%clk 0:00:14]}  Kxg1 {[%clk 0:01:49]} 1/2-1/2


[Site "https://www.chess.com"]

[Event "Titled Tuesday Blitz November 29 Late 2022"]
[White "Sadhwani, Raunak"]
[Black "Sivakumar, Shaaketh"]
[WhiteFideId "35093487"]
[BlackFideId "30940176"]
[WhiteElo "2980"]
[BlackElo "2511"]
[Result "1-0"]
[Round "01"]
[TimeControl "180+1"]
[Date "2022.11.30"]
[WhiteClock "0:00:15"]
[BlackClock "0:00:22"]

1. e4 {[%clk 0:02:56]}  e6 {[%clk 0:03:00]} 2. d4 {[%clk 0:02:56]}  d5 {[%clk 0:02:59]} 3. exd5 {[%clk 0:02:56]}  exd5 {[%clk 0:02:57]} 4. Nf3 {[%clk 0:02:57]}  Nc6 {[%clk 0:02:46]} 5. Bb5 {[%clk 0:02:50]}  Bg4 {[%clk 0:02:46]} 6. O-O {[%clk 0:02:48]}  Bd6 {[%clk 0:02:42]} 7. Re1+ {[%clk 0:02:48]}  Ne7 {[%clk 0:02:31]} 8. h3 {[%clk 0:02:48]}  Bh5 {[%clk 0:02:31]} 9. c3 {[%clk 0:02:43]}  Qd7 {[%clk 0:02:31]} 10. Nbd2 {[%clk 0:02:42]}  O-O-O {[%clk 0:02:30]} 11. Nf1 {[%clk 0:02:29]}  f6 {[%clk 0:02:30]} 12. Ng3 {[%clk 0:02:28]}  Bxf3 {[%clk 0:02:25]} 13. Qxf3 {[%clk 0:02:19]}  h5 {[%clk 0:02:13]} 14. Nxh5 {[%clk 0:02:14]}  Nf5 {[%clk 0:01:59]} 15. Nf4 {[%clk 0:02:09]}  Nh4 {[%clk 0:01:56]} 16. Qxd5 {[%clk 0:02:07]}  g5 {[%clk 0:01:56]} 17. Bxc6 {[%clk 0:01:49]}  bxc6 {[%clk 0:01:53]} 18. Qa5 {[%clk 0:00:59]}  gxf4 {[%clk 0:01:47]} 19. d5 {[%clk 0:00:59]}  Rhg8 {[%clk 0:01:30]} 20. Qa6+ {[%clk 0:00:48]}  Kb8 {[%clk 0:01:28]} 21. dxc6 {[%clk 0:00:49]}  Rxg2+ {[%clk 0:01:21]} 22. Kf1 {[%clk 0:00:49]}  Qc8 {[%clk 0:00:52]} 23. Qxc8+ {[%clk 0:00:49]}  Kxc8 {[%clk 0:00:51]} 24. Re4 {[%clk 0:00:50]}  Rdg8 {[%clk 0:00:46]} 25. Ke2 {[%clk 0:00:49]}  Bc5 {[%clk 0:00:45]} 26. Rxf4 {[%clk 0:00:49]}  Re8+ {[%clk 0:00:43]} 27. Kf1 {[%clk 0:00:40]}  Rh2 {[%clk 0:00:39]} 28. Kg1 {[%clk 0:00:18]}  Rg2+ {[%clk 0:00:38]} 29. Kf1 {[%clk 0:00:18]}  Ng6 {[%clk 0:00:30]} 30. Kxg2 {[%clk 0:00:18]}  Nxf4+ {[%clk 0:00:27]} 31. Bxf4 {[%clk 0:00:18]}  Re2 {[%clk 0:00:27]} 32. Bg3 {[%clk 0:00:16]}  Rxb2 {[%clk 0:00:27]} 33. h4 {[%clk 0:00:16]}  Kd8 {[%clk 0:00:25]} 34. h5 {[%clk 0:00:17]}  Ke7 {[%clk 0:00:26]} 35. Rd1 {[%clk 0:00:16]}  Ke6 {[%clk 0:00:23]} 36. Rd7 {[%clk 0:00:16]}  f5 {[%clk 0:00:23]} 37. h6 {[%clk 0:00:14]}  f4 {[%clk 0:00:23]} 38. h7 {[%clk 0:00:15]}  fxg3 {[%clk 0:00:21]} 39. h8=Q {[%clk 0:00:15]}  Rxf2+ {[%clk 0:00:20]} 40. Kxg3 {[%clk 0:00:15]}  Rf8 {[%clk 0:00:19]} 41. Qh6+ {[%clk 0:00:13]}  Rf6 {[%clk 0:00:19]} 42. Qh3+ {[%clk 0:00:13]}  Ke5 {[%clk 0:00:19]} 43. Qh5+ {[%clk 0:00:13]}  Rf5 {[%clk 0:00:19]} 44. Rd5+ {[%clk 0:00:13]}  Kxd5 {[%clk 0:00:19]} 45. Qxf5+ {[%clk 0:00:14]}  Kc4 {[%clk 0:00:20]} 46. Kf3 {[%clk 0:00:14]}  Bd6 {[%clk 0:00:21]} 47. Qd7 {[%clk 0:00:15]}  Kxc3 {[%clk 0:00:22]} 48. Qxd6 {[%clk 0:00:15]} 1-0


[Site "https://www.chess.com"]

[Event "Titled Tuesday Blitz November 29 Late 2022"]
[White "Sailer, Mike"]
[Black "Czopor, Maciej"]
[WhiteFideId "2012901"]
[BlackFideId "21805431"]
[WhiteElo "2109"]
[BlackElo "2324"]
[Result "0-1"]
[Round "01"]
[TimeControl "180+1"]
[Date "2022.11.30"]
[WhiteClock "0:00:11"]
[BlackClock "0:00:22"]

1. Nf3 {[%clk 0:02:59]}  Nf6 {[%clk 0:02:59]} 2. c4 {[%clk 0:02:59]}  g6 {[%clk 0:03:00]} 3. g3 {[%clk 0:02:58]}  Bg7 {[%clk 0:03:00]} 4. Bg2 {[%clk 0:02:58]}  O-O {[%clk 0:03:01]} 5. O-O {[%clk 0:02:58]}  d6 {[%clk 0:03:00]} 6. Nc3 {[%clk 0:02:59]}  e5 {[%clk 0:03:00]} 7. d4 {[%clk 0:02:53]}  Nc6 {[%clk 0:02:59]} 8. d5 {[%clk 0:02:48]}  Ne7 {[%clk 0:02:59]} 9. b4 {[%clk 0:02:46]}  a5 {[%clk 0:02:56]} 10. bxa5 {[%clk 0:02:42]}  Rxa5 {[%clk 0:02:57]} 11. Nb5 {[%clk 0:02:37]}  Ne8 {[%clk 0:02:55]} 12. Bd2 {[%clk 0:02:36]}  Ra8 {[%clk 0:02:54]} 13. a4 {[%clk 0:02:31]}  c6 {[%clk 0:02:49]} 14. dxc6 {[%clk 0:02:30]}  bxc6 {[%clk 0:02:49]} 15. Nc3 {[%clk 0:02:29]}  Be6 {[%clk 0:02:49]} 16. c5 {[%clk 0:02:28]}  d5 {[%clk 0:02:47]} 17. Ng5 {[%clk 0:02:16]}  Bd7 {[%clk 0:02:41]} 18. a5 {[%clk 0:02:00]}  h6 {[%clk 0:02:40]} 19. Nf3 {[%clk 0:01:59]}  Nc7 {[%clk 0:02:41]} 20. Na4 {[%clk 0:01:57]}  Na6 {[%clk 0:02:35]} 21. Nb6 {[%clk 0:01:57]}  Ra7 {[%clk 0:02:35]} 22. Rc1 {[%clk 0:01:52]}  Kh7 {[%clk 0:02:19]} 23. Ne1 {[%clk 0:01:36]}  Bf5 {[%clk 0:02:03]} 24. e4 {[%clk 0:01:29]}  Bxe4 {[%clk 0:01:54]} 25. Bxe4 {[%clk 0:01:28]}  dxe4 {[%clk 0:01:55]} 26. Qe2 {[%clk 0:01:19]}  f5 {[%clk 0:01:53]} 27. Nc2 {[%clk 0:01:18]}  Nd5 {[%clk 0:01:49]} 28. Ne3 {[%clk 0:01:00]}  f4 {[%clk 0:01:34]} 29. Nec4 {[%clk 0:00:57]}  Nxc5 {[%clk 0:01:29]} 30. Rfd1 {[%clk 0:00:32]}  f3 {[%clk 0:01:20]} 31. Qe1 {[%clk 0:00:32]}  Nd3 {[%clk 0:01:14]} 32. Qf1 {[%clk 0:00:33]}  Nxc1 {[%clk 0:01:14]} 33. Bxc1 {[%clk 0:00:30]}  Qe8 {[%clk 0:00:23]} 34. Nxd5 {[%clk 0:00:27]}  cxd5 {[%clk 0:00:24]} 35. Rxd5 {[%clk 0:00:27]}  Qc6 {[%clk 0:00:25]} 36. Rd6 {[%clk 0:00:21]}  Qb5 {[%clk 0:00:23]} 37. Rxg6 {[%clk 0:00:14]}  Kxg6 {[%clk 0:00:22]} 38. Nxe5+ {[%clk 0:00:11]}  Qxe5 {[%clk 0:00:22]} 39. Qc4 {[%clk 0:00:11]} 0-1


[Site "https://www.chess.com"]

[Event "Titled Tuesday Blitz November 29 Late 2022"]
[White "Salman, Pavel"]
[Black "Vargas, Mauricio"]
[WhiteFideId "24153753"]
[BlackFideId "4404572"]
[WhiteElo "2187"]
[BlackElo "2025"]
[Result "1-0"]
[Round "01"]
[TimeControl "180+1"]
[Date "2022.11.30"]
[WhiteClock "0:00:31"]
[BlackClock "0:00:01"]

1. Nf3 {[%clk 0:02:58]}  Nc6 {[%clk 0:02:58]} 2. d4 {[%clk 0:02:58]}  d6 {[%clk 0:02:56]} 3. g3 {[%clk 0:02:56]}  e6 {[%clk 0:02:56]} 4. Bg2 {[%clk 0:02:55]}  g6 {[%clk 0:02:55]} 5. O-O {[%clk 0:02:55]}  Bg7 {[%clk 0:02:55]} 6. c4 {[%clk 0:02:56]}  f5 {[%clk 0:02:52]} 7. Nc3 {[%clk 0:02:56]}  Nf6 {[%clk 0:02:51]} 8. Bg5 {[%clk 0:02:56]}  O-O {[%clk 0:02:51]} 9. d5 {[%clk 0:02:56]}  Ne7 {[%clk 0:02:41]} 10. Nd4 {[%clk 0:02:51]}  e5 {[%clk 0:02:40]} 11. Ne6 {[%clk 0:02:51]}  Bxe6 {[%clk 0:02:39]} 12. dxe6 {[%clk 0:02:52]}  c6 {[%clk 0:02:39]} 13. Qb3 {[%clk 0:02:50]}  Kh8 {[%clk 0:02:37]} 14. Qxb7 {[%clk 0:02:47]}  e4 {[%clk 0:02:25]} 15. Rad1 {[%clk 0:02:42]}  h6 {[%clk 0:02:15]} 16. Bf4 {[%clk 0:02:39]}  Ne8 {[%clk 0:02:06]} 17. Qa6 {[%clk 0:02:23]}  g5 {[%clk 0:02:03]} 18. Bc1 {[%clk 0:02:10]}  Be5 {[%clk 0:01:47]} 19. Qa3 {[%clk 0:01:53]}  Rf6 {[%clk 0:01:38]} 20. f4 {[%clk 0:01:44]}  exf3 {[%clk 0:01:36]} 21. exf3 {[%clk 0:01:44]}  Rxe6 {[%clk 0:01:33]} 22. f4 {[%clk 0:01:44]}  Qb6+ {[%clk 0:01:11]} 23. Kh1 {[%clk 0:01:43]}  Bf6 {[%clk 0:00:58]} 24. fxg5 {[%clk 0:01:36]}  hxg5 {[%clk 0:00:57]} 25. Na4 {[%clk 0:01:09]}  Qa6 {[%clk 0:00:29]} 26. Qb3 {[%clk 0:01:06]}  Ng6 {[%clk 0:00:18]} 27. c5 {[%clk 0:01:01]}  d5 {[%clk 0:00:15]} 28. Rxf5 {[%clk 0:00:59]}  Qe2 {[%clk 0:00:10]} 29. Rdf1 {[%clk 0:00:53]}  Ne5 {[%clk 0:00:10]} 30. Bxg5 {[%clk 0:00:46]}  Bxg5 {[%clk 0:00:07]} 31. Rxg5 {[%clk 0:00:47]}  Ng4 {[%clk 0:00:05]} 32. Qc3+ {[%clk 0:00:41]}  Nef6 {[%clk 0:00:02]} 33. Qf3 {[%clk 0:00:31]}  Rf8 {[%clk 0:00:01]} 34. Qxe2 {[%clk 0:00:31]} 1-0


[Site "https://www.chess.com"]